[Event "Early-Titled-Tuesday-Blitz-January-23-2024"]
[Site "Chess.com"]
[Date "2024.01.23"]
[Round "9"]
[White "Indianlad"]
[Black "Al_Shima"]
[Result "1-0"]
[WhiteElo "2964"]
[BlackElo "2298"]
[TimeControl "180+1"]
[EndTime "9:44:50 PST"]
[Termination "Indianlad won by resignation"]

1. b3 {[%clk 0:02:56.1]} 1... e5 {[%clk 0:02:47]} 2. Bb2 {[%clk 0:02:57]} 2...
Nc6 {[%clk 0:02:47.1]} 3. e3 {[%clk 0:02:57.2]} 3... d5 {[%clk 0:02:47.6]} 4.
Bb5 {[%clk 0:02:56.8]} 4... Ne7 {[%clk 0:02:48.2]} 5. Bxe5 {[%clk 0:02:55.3]}
5... a6 {[%clk 0:02:48.7]} 6. Bxc6+ {[%clk 0:02:55.6]} 6... Nxc6 {[%clk
0:02:49.6]} 7. Bg3 {[%clk 0:02:56.1]} 7... h5 {[%clk 0:02:43.7]} 8. h4 {[%clk
0:02:56.3]} 8... Bf5 {[%clk 0:02:40.4]} 9. Nf3 {[%clk 0:02:55.1]} 9... Qd7
{[%clk 0:02:36.4]} 10. d3 {[%clk 0:02:53.5]} 10... O-O-O {[%clk 0:02:36]} 11.
Nbd2 {[%clk 0:02:52.3]} 11... Bb4 {[%clk 0:02:31.4]} 12. a3 {[%clk 0:02:49.8]}
12... Bc3 {[%clk 0:02:31.3]} 13. Rb1 {[%clk 0:02:50.3]} 13... Rhe8 {[%clk
0:02:30.7]} 14. O-O {[%clk 0:02:49.4]} 14... Bg4 {[%clk 0:02:29.1]} 15. Qc1
{[%clk 0:02:49.7]} 15... f6 {[%clk 0:02:04.3]} 16. b4 {[%clk 0:02:49]} 16... d4
{[%clk 0:01:54.9]} 17. b5 {[%clk 0:02:34.7]} 17... axb5 {[%clk 0:01:46.7]} 18.
Rxb5 {[%clk 0:02:35.3]} 18... dxe3 {[%clk 0:01:46.2]} 19. fxe3 {[%clk
0:02:05.9]} 19... Rxe3 {[%clk 0:01:41.7]} 20. Nb3 {[%clk 0:02:02.7]} 20... Rde8
{[%clk 0:00:36.3]} 21. Rxb7 {[%clk 0:01:56.9]} 21... Ne5 {[%clk 0:00:15.6]} 22.
Qxe3 {[%clk 0:01:57]} 22... Nxf3+ {[%clk 0:00:13.5]} 23. Qxf3 {[%clk 0:01:57.3]}
23... Bxf3 {[%clk 0:00:13.8]} 24. Rxc7+ {[%clk 0:01:57.6]} 24... Qxc7 {[%clk
0:00:14.7]} 25. Bxc7 {[%clk 0:01:57.8]} 25... Kxc7 {[%clk 0:00:15.6]} 26. Rxf3
{[%clk 0:01:57.3]} 26... Ra8 {[%clk 0:00:12.9]} 27. d4 {[%clk 0:01:55.7]} 27...
Bb2 {[%clk 0:00:13.2]} 28. Kf2 {[%clk 0:01:42.6]} 28... Rxa3 {[%clk 0:00:12.8]}
29. Ke2 {[%clk 0:01:43.4]} 29... Ra8 {[%clk 0:00:08.5]} 30. Kd3 {[%clk
0:01:43.3]} 30... Re8 {[%clk 0:00:05.9]} 31. Rf5 {[%clk 0:01:43.6]} 31... Ba3
{[%clk 0:00:02.5]} 32. Rxh5 {[%clk 0:01:42.5]} 32... Re1 {[%clk 0:00:02.5]} 33.
Ra5 {[%clk 0:01:42.6]} 33... Bd6 {[%clk 0:00:02.2]} 34. Ra7+ {[%clk 0:01:42.8]}
34... Kb6 {[%clk 0:00:03]} 35. Rxg7 {[%clk 0:01:43.4]} 35... Rh1 {[%clk
0:00:03.4]} 36. Nd2 {[%clk 0:01:43.6]} 36... Rxh4 {[%clk 0:00:02]} 37. Nc4+
{[%clk 0:01:43.7]} 37... Kc6 {[%clk 0:00:02.3]} 38. Nxd6 {[%clk 0:01:44.2]}
38... Kxd6 {[%clk 0:00:03.2]} 39. c4 {[%clk 0:01:44.7]} 39... Rh1 {[%clk
0:00:02.4]} 40. c5+ {[%clk 0:01:45.2]} 40... Kd5 {[%clk 0:00:03.3]} 41. Rd7+
{[%clk 0:01:45.6]} 41... Kc6 {[%clk 0:00:03.8]} 42. Rd6+ {[%clk 0:01:46]} 42...
Kb5 {[%clk 0:00:04.7]} 43. Rb6+ {[%clk 0:01:46.1]} 43... Ka5 {[%clk 0:00:03.8]}
44. Rxf6 {[%clk 0:01:47]} 44... Rd1+ {[%clk 0:00:03.9]} 45. Kc4 {[%clk
0:01:47.3]} 45... Rc1+ {[%clk 0:00:04.4]} 46. Kd5 {[%clk 0:01:47.9]} 46... Rg1
{[%clk 0:00:04.7]} 47. c6 {[%clk 0:01:46.8]} 47... Rh1 {[%clk 0:00:05.5]} 48. c7
{[%clk 0:01:47]} 48... Rh5+ {[%clk 0:00:06.4]} 49. Kc6 {[%clk 0:01:46.8]} 49...
Rh8 {[%clk 0:00:03.8]} 50. d5 {[%clk 0:01:46.8]} 50... Ra8 {[%clk 0:00:01.4]}
51. d6 {[%clk 0:01:46.7]} 51... Ra6+ {[%clk 0:00:01.4]} 52. Kd7 {[%clk
0:01:47.4]} 52... Ra7 {[%clk 0:00:02]} 53. Rf8 {[%clk 0:01:47]} 53... Kb6 {[%clk
0:00:02.2]} 54. Ke6 {[%clk 0:01:47.3]} 54... Rxc7 {[%clk 0:00:01.7]} 1-0

[Event "Early-Titled-Tuesday-Blitz-January-23-2024"]
[Site "Chess.com"]
[Date "2024.01.23"]
[Round "9"]
[White "NewYearGirl"]
[Black "Lion-Al-Messi"]
[Result "0-1"]
[WhiteElo "2368"]
[BlackElo "2568"]
[TimeControl "180+1"]
[EndTime "9:44:53 PST"]
[Termination "Lion-Al-Messi won by resignation"]

1. e4 {[%clk 0:03:00.9]} 1... c5 {[%clk 0:02:59.5]} 2. Nf3 {[%clk 0:03:00.9]}
2... e6 {[%clk 0:03:00]} 3. d4 {[%clk 0:03:01.2]} 3... cxd4 {[%clk 0:03:00.9]}
4. Nxd4 {[%clk 0:03:01.7]} 4... a6 {[%clk 0:03:01.4]} 5. c4 {[%clk 0:02:32.5]}
5... Nf6 {[%clk 0:02:59]} 6. Bd3 {[%clk 0:02:30.3]} 6... Nc6 {[%clk 0:02:50]} 7.
Be3 {[%clk 0:02:29.7]} 7... Bb4+ {[%clk 0:02:40.4]} 8. Nc3 {[%clk 0:02:27.7]}
8... O-O {[%clk 0:02:41]} 9. Kf1 {[%clk 0:02:27.5]} 9... Ne5 {[%clk 0:02:35.3]}
10. Be2 {[%clk 0:02:25.5]} 10... b5 {[%clk 0:02:33.3]} 11. cxb5 {[%clk
0:02:19.3]} 11... axb5 {[%clk 0:02:33.2]} 12. f3 {[%clk 0:02:15]} 12... Bb7
{[%clk 0:02:29.7]} 13. Ndxb5 {[%clk 0:02:08.6]} 13... d5 {[%clk 0:02:28.6]} 14.
exd5 {[%clk 0:01:54.9]} 14... Nxd5 {[%clk 0:02:21.6]} 15. Bd4 {[%clk 0:01:54.5]}
15... Nc6 {[%clk 0:02:07.8]} 16. Bf2 {[%clk 0:01:43.2]} 16... Ba6 {[%clk
0:01:59.8]} 17. a4 {[%clk 0:01:41.9]} 17... Qg5 {[%clk 0:01:48.7]} 18. Qc1
{[%clk 0:01:33.6]} 18... Qg6 {[%clk 0:01:44.6]} 19. Nxd5 {[%clk 0:01:32.9]}
19... exd5 {[%clk 0:01:44.2]} 20. h4 {[%clk 0:01:15.8]} 20... h5 {[%clk
0:01:41.1]} 21. Qg5 {[%clk 0:01:13.2]} 21... Qe6 {[%clk 0:01:37.3]} 22. Qxh5
{[%clk 0:01:11.1]} 22... Rfe8 {[%clk 0:01:33.6]} 23. Bd3 {[%clk 0:01:09.4]}
23... g6 {[%clk 0:01:34.3]} 24. Qh6 {[%clk 0:01:05.5]} 24... Ne5 {[%clk
0:01:34.1]} 25. Nc7 {[%clk 0:00:59.1]} 25... Bxd3+ {[%clk 0:01:33.5]} 26. Kg1
{[%clk 0:00:59.8]} 26... Qf5 {[%clk 0:01:20.1]} 27. Nxa8 {[%clk 0:00:57.6]}
27... Rxa8 {[%clk 0:01:06.5]} 28. h5 {[%clk 0:00:55.7]} 28... g5 {[%clk
0:01:03.8]} 29. Bd4 {[%clk 0:00:53.2]} 29... Re8 {[%clk 0:00:59.7]} 30. Rh3
{[%clk 0:00:38.9]} 30... Qf4 {[%clk 0:00:57.4]} 31. Bf2 {[%clk 0:00:35.9]} 31...
f6 {[%clk 0:00:50.3]} 32. Rd1 {[%clk 0:00:33.6]} 32... Nf7 {[%clk 0:00:49.4]}
33. g3 {[%clk 0:00:22.5]} 33... Qxf3 {[%clk 0:00:48.3]} 34. Rxd3 {[%clk
0:00:22.2]} 34... Re1+ {[%clk 0:00:44.3]} 35. Bxe1 {[%clk 0:00:20.8]} 35... Bc5+
{[%clk 0:00:44.8]} 36. Kh2 {[%clk 0:00:19.1]} 36... Qe2+ {[%clk 0:00:45.1]} 37.
Kh1 {[%clk 0:00:18.5]} 37... Qf1+ {[%clk 0:00:43.1]} 0-1

[Event "Early-Titled-Tuesday-Blitz-January-23-2024"]
[Site "Chess.com"]
[Date "2024.01.23"]
[Round "9"]
[White "Better_Chess_Faster"]
[Black "AndresDelgado77"]
[Result "1-0"]
[WhiteElo "2153"]
[BlackElo "2380"]
[TimeControl "180+1"]
[EndTime "9:44:54 PST"]
[Termination "Better_Chess_Faster won on time"]

1. d4 {[%clk 0:03:00.9]} 1... Nf6 {[%clk 0:02:58.9]} 2. Bg5 {[%clk 0:03:00.5]}
2... d5 {[%clk 0:02:52.7]} 3. e3 {[%clk 0:02:58]} 3... Ne4 {[%clk 0:02:47.7]} 4.
Bf4 {[%clk 0:02:56.1]} 4... c5 {[%clk 0:02:46.8]} 5. Bd3 {[%clk 0:02:55.3]} 5...
Qb6 {[%clk 0:02:38.5]} 6. Qc1 {[%clk 0:02:49.9]} 6... cxd4 {[%clk 0:02:30.7]} 7.
Nf3 {[%clk 0:02:48.9]} 7... e5 {[%clk 0:02:05.7]} 8. Bxe5 {[%clk 0:02:31.8]}
8... dxe3 {[%clk 0:01:53.7]} 9. fxe3 {[%clk 0:02:18.8]} 9... Nc6 {[%clk
0:01:47.4]} 10. O-O {[%clk 0:02:13]} 10... Nxe5 {[%clk 0:01:33.6]} 11. Nxe5
{[%clk 0:02:10.8]} 11... Bc5 {[%clk 0:01:33.7]} 12. Kh1 {[%clk 0:01:49.4]} 12...
Bxe3 {[%clk 0:01:29.1]} 13. Qe1 {[%clk 0:01:44.1]} 13... Bf2 {[%clk 0:00:47.7]}
14. Bb5+ {[%clk 0:00:41.8]} 14... Kf8 {[%clk 0:00:22.9]} 15. Qb4+ {[%clk
0:00:36.1]} 15... Bc5 {[%clk 0:00:06.6]} 16. Rxf7+ {[%clk 0:00:34.4]} 16... Kg8
{[%clk 0:00:06.2]} 17. Qb3 {[%clk 0:00:20.4]} 17... Be6 {[%clk 0:00:01.6]} 18.
Nc3 {[%clk 0:00:13.2]} 1-0

[Event "Early-Titled-Tuesday-Blitz-January-23-2024"]
[Site "Chess.com"]
[Date "2024.01.23"]
[Round "9"]
[White "ATM622"]
[Black "LileKoridze"]
[Result "1-0"]
[WhiteElo "2496"]
[BlackElo "2312"]
[TimeControl "180+1"]
[EndTime "9:44:57 PST"]
[Termination "ATM622 won by resignation"]

1. d4 {[%clk 0:03:00.9]} 1... Nf6 {[%clk 0:02:59.6]} 2. c4 {[%clk 0:03:01.5]}
2... e6 {[%clk 0:02:59.6]} 3. g3 {[%clk 0:03:02.1]} 3... d5 {[%clk 0:02:59.6]}
4. Bg2 {[%clk 0:03:02.5]} 4... Bb4+ {[%clk 0:02:59.4]} 5. Nd2 {[%clk 0:03:01.9]}
5... O-O {[%clk 0:02:57.7]} 6. Qc2 {[%clk 0:03:02]} 6... b6 {[%clk 0:02:57.9]}
7. Nf3 {[%clk 0:03:01.8]} 7... Bb7 {[%clk 0:02:56.7]} 8. O-O {[%clk 0:03:02.2]}
8... Nbd7 {[%clk 0:02:49.4]} 9. Rd1 {[%clk 0:03:00.2]} 9... Rc8 {[%clk
0:02:43.9]} 10. b3 {[%clk 0:02:58.1]} 10... c5 {[%clk 0:02:43.5]} 11. Bb2 {[%clk
0:02:58.2]} 11... cxd4 {[%clk 0:02:43.5]} 12. Nxd4 {[%clk 0:02:57.8]} 12... Ba8
{[%clk 0:02:42.2]} 13. Rac1 {[%clk 0:02:51.4]} 13... Qe7 {[%clk 0:02:32.3]} 14.
Qb1 {[%clk 0:02:45.6]} 14... Bxd2 {[%clk 0:02:03.2]} 15. Rxd2 {[%clk 0:02:43.7]}
15... Nc5 {[%clk 0:02:01]} 16. cxd5 {[%clk 0:02:35.5]} 16... Bxd5 {[%clk
0:02:00.2]} 17. Bxd5 {[%clk 0:02:20.2]} 17... Nxd5 {[%clk 0:01:59.6]} 18. e4
{[%clk 0:02:19.4]} 18... Nf6 {[%clk 0:01:54.8]} 19. f3 {[%clk 0:02:18.9]} 19...
Rfd8 {[%clk 0:01:54.1]} 20. Rcd1 {[%clk 0:02:13.9]} 20... h6 {[%clk 0:01:21.2]}
21. Ba3 {[%clk 0:02:01.8]} 21... Qe8 {[%clk 0:01:17.3]} 22. Kg2 {[%clk
0:01:48.5]} 22... Nfd7 {[%clk 0:00:56.1]} 23. Nb5 {[%clk 0:01:46.9]} 23... Qe7
{[%clk 0:00:50.8]} 24. Nxa7 {[%clk 0:01:37.3]} 24... Rc7 {[%clk 0:00:50.9]} 25.
Nb5 {[%clk 0:01:37.3]} 25... Rcc8 {[%clk 0:00:51.2]} 26. Nd6 {[%clk 0:01:29.7]}
26... Rc6 {[%clk 0:00:49.1]} 27. b4 {[%clk 0:01:28.8]} 27... Na4 {[%clk
0:00:46.6]} 28. b5 {[%clk 0:01:05.4]} 28... Nc3 {[%clk 0:00:28.9]} 29. Qd3
{[%clk 0:00:48.1]} 29... Ne5 {[%clk 0:00:24.4]} 30. Qd4 {[%clk 0:00:38.3]} 30...
Nxd1 {[%clk 0:00:21.8]} 31. bxc6 {[%clk 0:00:33.4]} 31... Nxc6 {[%clk 0:00:21]}
32. Qxb6 {[%clk 0:00:33.2]} 32... Ne3+ {[%clk 0:00:12.6]} 33. Qxe3 {[%clk
0:00:32.5]} 1-0

[Event "Early-Titled-Tuesday-Blitz-January-23-2024"]
[Site "Chess.com"]
[Date "2024.01.23"]
[Round "9"]
[White "pr1105"]
[Black "martinmena"]
[Result "1-0"]
[WhiteElo "2276"]
[BlackElo "2055"]
[TimeControl "180+1"]
[EndTime "9:44:57 PST"]
[Termination "pr1105 won on time"]

1. e4 {[%clk 0:02:54.6]} 1... c6 {[%clk 0:02:53.7]} 2. d4 {[%clk 0:02:54.6]}
2... d5 {[%clk 0:02:54.6]} 3. Nd2 {[%clk 0:02:54.3]} 3... dxe4 {[%clk
0:02:54.4]} 4. Nxe4 {[%clk 0:02:55.2]} 4... Nd7 {[%clk 0:02:54.4]} 5. Nf3 {[%clk
0:02:52.5]} 5... Ngf6 {[%clk 0:02:54.3]} 6. Neg5 {[%clk 0:02:51.7]} 6... e6
{[%clk 0:02:53.1]} 7. Bd3 {[%clk 0:02:51.5]} 7... h6 {[%clk 0:02:48.1]} 8. Nxe6
{[%clk 0:02:26.8]} 8... fxe6 {[%clk 0:02:46.3]} 9. Bg6+ {[%clk 0:02:27.1]} 9...
Ke7 {[%clk 0:02:46.9]} 10. O-O {[%clk 0:02:19]} 10... Nb6 {[%clk 0:02:35.9]} 11.
Qe2 {[%clk 0:02:13.5]} 11... Qd6 {[%clk 0:02:20.2]} 12. c4 {[%clk 0:02:07.3]}
12... c5 {[%clk 0:01:30.5]} 13. b4 {[%clk 0:01:39]} 13... cxd4 {[%clk
0:00:40.4]} 14. c5 {[%clk 0:01:34.7]} 14... Qd5 {[%clk 0:00:39.9]} 15. cxb6
{[%clk 0:01:31.5]} 15... Bd7 {[%clk 0:00:32]} 16. a4 {[%clk 0:01:28.4]} 16...
axb6 {[%clk 0:00:30.5]} 17. b5 {[%clk 0:01:28.6]} 17... Kd8 {[%clk 0:00:20.5]}
18. Ne5 {[%clk 0:01:21.3]} 18... Bxb5 {[%clk 0:00:16.8]} 19. Nf7+ {[%clk
0:01:13.1]} 19... Kc8 {[%clk 0:00:11.4]} 20. axb5 {[%clk 0:01:10.7]} 20... Rxa1
{[%clk 0:00:10.6]} 21. Nxh8 {[%clk 0:01:09.4]} 21... Bd6 {[%clk 0:00:03.3]} 22.
Nf7 {[%clk 0:01:06.5]} 22... Kd7 {[%clk 0:00:03.8]} 23. Nxd6 {[%clk 0:01:05.8]}
23... Kxd6 {[%clk 0:00:03.9]} 24. Bf4+ {[%clk 0:01:06.2]} 24... e5 {[%clk
0:00:04.4]} 25. Bxe5+ {[%clk 0:01:04.7]} 25... Qxe5 {[%clk 0:00:02.5]} 26. Qxe5+
{[%clk 0:01:05.6]} 26... Kxe5 {[%clk 0:00:03.1]} 27. Rxa1 {[%clk 0:01:06.5]}
27... Nd5 {[%clk 0:00:02.6]} 28. Kf1 {[%clk 0:01:04.5]} 28... Nc3 {[%clk
0:00:02.6]} 29. Bd3 {[%clk 0:01:02.7]} 29... Kd5 {[%clk 0:00:03.2]} 30. g4
{[%clk 0:01:02]} 30... Kc5 {[%clk 0:00:03.7]} 31. h4 {[%clk 0:01:01.8]} 31...
Nd5 {[%clk 0:00:03.1]} 32. Rc1+ {[%clk 0:00:59.1]} 32... Kb4 {[%clk 0:00:02.6]}
33. Ke2 {[%clk 0:00:56.2]} 33... Nf4+ {[%clk 0:00:03]} 34. Kd2 {[%clk
0:00:56.7]} 34... Ng2 {[%clk 0:00:02.6]} 35. h5 {[%clk 0:00:56.2]} 35... Nh4
{[%clk 0:00:02.5]} 36. Be4 {[%clk 0:00:53.9]} 36... Kxb5 {[%clk 0:00:01.1]} 37.
Rh1 {[%clk 0:00:54.2]} 1-0

[Event "Early-Titled-Tuesday-Blitz-January-23-2024"]
[Site "Chess.com"]
[Date "2024.01.23"]
[Round "9"]
[White "tptagain"]
[Black "ChessQueen"]
[Result "0-1"]
[WhiteElo "2915"]
[BlackElo "2743"]
[TimeControl "180+1"]
[EndTime "9:44:58 PST"]
[Termination "ChessQueen won on time"]

1. Nf3 {[%clk 0:03:00.9]} 1... d5 {[%clk 0:02:56.8]} 2. d4 {[%clk 0:03:00.5]}
2... Nf6 {[%clk 0:02:55.3]} 3. e3 {[%clk 0:03:00.8]} 3... g6 {[%clk 0:02:51.9]}
4. c4 {[%clk 0:03:00.1]} 4... Bg7 {[%clk 0:02:51.4]} 5. cxd5 {[%clk 0:03:00]}
5... Nxd5 {[%clk 0:02:51.2]} 6. e4 {[%clk 0:02:58.8]} 6... Nb6 {[%clk 0:02:49]}
7. h3 {[%clk 0:02:56.3]} 7... O-O {[%clk 0:02:44.3]} 8. Nc3 {[%clk 0:02:53.6]}
8... c5 {[%clk 0:02:38.6]} 9. Be3 {[%clk 0:02:43.8]} 9... cxd4 {[%clk
0:02:33.1]} 10. Nxd4 {[%clk 0:02:44.7]} 10... Bd7 {[%clk 0:02:29.9]} 11. Be2
{[%clk 0:02:36.4]} 11... Nc6 {[%clk 0:02:30.1]} 12. Nb3 {[%clk 0:02:33.5]} 12...
Ne5 {[%clk 0:02:27.1]} 13. Bd4 {[%clk 0:02:27.6]} 13... Rc8 {[%clk 0:02:14.8]}
14. O-O {[%clk 0:01:36]} 14... Nec4 {[%clk 0:02:09.2]} 15. Bxg7 {[%clk
0:01:33.1]} 15... Kxg7 {[%clk 0:02:10.1]} 16. Bxc4 {[%clk 0:01:27.9]} 16... Nxc4
{[%clk 0:02:09.5]} 17. Qe2 {[%clk 0:01:28.2]} 17... Qc7 {[%clk 0:01:59.9]} 18.
Nd5 {[%clk 0:01:26.3]} 18... Qe5 {[%clk 0:01:58.4]} 19. Rab1 {[%clk 0:01:23.5]}
19... e6 {[%clk 0:01:47.7]} 20. f4 {[%clk 0:01:11.6]} 20... Qd6 {[%clk
0:01:47.6]} 21. Nc3 {[%clk 0:01:09]} 21... Qb6+ {[%clk 0:01:45.3]} 22. Kh2
{[%clk 0:01:08.4]} 22... Qe3 {[%clk 0:01:43.2]} 23. Qxe3 {[%clk 0:00:50.7]}
23... Nxe3 {[%clk 0:01:44.1]} 24. Rf2 {[%clk 0:00:49.8]} 24... Nc4 {[%clk
0:01:43.8]} 25. Rd1 {[%clk 0:00:47]} 25... Rfd8 {[%clk 0:01:42.9]} 26. e5 {[%clk
0:00:32.7]} 26... Be8 {[%clk 0:01:42.7]} 27. Rxd8 {[%clk 0:00:31.6]} 27... Rxd8
{[%clk 0:01:43.6]} 28. Ne4 {[%clk 0:00:31.6]} 28... Rd1 {[%clk 0:01:36.1]} 29.
Nf6 {[%clk 0:00:23.2]} 29... Bc6 {[%clk 0:01:32.9]} 30. Nc5 {[%clk 0:00:23.8]}
30... Ne3 {[%clk 0:01:27.9]} 31. Kg3 {[%clk 0:00:19.1]} 31... h5 {[%clk
0:01:21]} 32. Nce4 {[%clk 0:00:16]} 32... Nf5+ {[%clk 0:01:03.6]} 33. Kh2 {[%clk
0:00:16.4]} 33... Re1 {[%clk 0:01:03.1]} 34. Nd2 {[%clk 0:00:05.2]} 34... h4
{[%clk 0:01:03.2]} 35. Nf1 {[%clk 0:00:02.6]} 35... Bb5 {[%clk 0:00:47.3]} 36.
Nd2 {[%clk 0:00:01.8]} 36... Ng3 {[%clk 0:00:46.4]} 0-1

[Event "Early-Titled-Tuesday-Blitz-January-23-2024"]
[Site "Chess.com"]
[Date "2024.01.23"]
[Round "9"]
[White "artooon"]
[Black "eljanov"]
[Result "1-0"]
[WhiteElo "2992"]
[BlackElo "2883"]
[TimeControl "180+1"]
[EndTime "9:44:59 PST"]
[Termination "artooon won by resignation"]

1. e4 {[%clk 0:03:00.9]} 1... c6 {[%clk 0:02:59.8]} 2. d4 {[%clk 0:02:59.9]}
2... d5 {[%clk 0:03:00.7]} 3. e5 {[%clk 0:03:00.5]} 3... Bf5 {[%clk 0:03:00.5]}
4. g4 {[%clk 0:03:00.2]} 4... Be4 {[%clk 0:02:58.3]} 5. f3 {[%clk 0:03:00.7]}
5... Bg6 {[%clk 0:02:58.6]} 6. e6 {[%clk 0:03:00.1]} 6... fxe6 {[%clk
0:02:56.6]} 7. h4 {[%clk 0:03:00.1]} 7... Qd6 {[%clk 0:02:50]} 8. h5 {[%clk
0:02:53.8]} 8... Qg3+ {[%clk 0:02:36.9]} 9. Ke2 {[%clk 0:02:53.5]} 9... Bf7
{[%clk 0:02:36.9]} 10. Nh3 {[%clk 0:02:37.5]} 10... e5 {[%clk 0:02:19]} 11. Rg1
{[%clk 0:02:03.3]} 11... Qh2+ {[%clk 0:02:19]} 12. Bg2 {[%clk 0:02:03.6]} 12...
Nf6 {[%clk 0:01:56.7]} 13. Kf2 {[%clk 0:01:48]} 13... exd4 {[%clk 0:01:15]} 14.
Bf4 {[%clk 0:01:44.6]} 14... Qxf4 {[%clk 0:01:15.2]} 15. Nxf4 {[%clk 0:01:45.5]}
15... e5 {[%clk 0:01:15.6]} 16. Re1 {[%clk 0:01:39.3]} 16... Nbd7 {[%clk
0:01:13.3]} 17. Nd3 {[%clk 0:01:26]} 17... Bd6 {[%clk 0:01:12.3]} 18. Nxe5
{[%clk 0:01:24]} 18... Nxe5 {[%clk 0:01:01.7]} 19. f4 {[%clk 0:01:20.5]} 19...
O-O {[%clk 0:01:01.6]} 20. fxe5 {[%clk 0:01:20.6]} 20... Nxg4+ {[%clk
0:01:01.9]} 21. Kg1 {[%clk 0:01:21.2]} 21... Nxe5 {[%clk 0:01:00.1]} 22. Qxd4
{[%clk 0:01:19.4]} 22... Nd7 {[%clk 0:00:55.7]} 23. Qh4 {[%clk 0:01:15.6]} 23...
Nf6 {[%clk 0:00:40.2]} 24. h6 {[%clk 0:01:14.1]} 24... Nh5 {[%clk 0:00:32.6]}
25. Qg4 {[%clk 0:00:51.9]} 25... Bc5+ {[%clk 0:00:16.8]} 26. Kh1 {[%clk
0:00:51]} 26... Bf2 {[%clk 0:00:15.3]} 27. Re7 {[%clk 0:00:47.1]} 27... Rae8
{[%clk 0:00:13.6]} 28. Rxe8 {[%clk 0:00:41.9]} 28... Rxe8 {[%clk 0:00:13.9]} 29.
Nd2 {[%clk 0:00:42.6]} 29... Re2 {[%clk 0:00:10.6]} 30. Nf3 {[%clk 0:00:36.5]}
30... Be6 {[%clk 0:00:09.3]} 31. Qxh5 {[%clk 0:00:34.9]} 1-0

[Event "Early-Titled-Tuesday-Blitz-January-23-2024"]
[Site "Chess.com"]
[Date "2024.01.23"]
[Round "9"]
[White "Msb2"]
[Black "GothamChess"]
[Result "0-1"]
[WhiteElo "3033"]
[BlackElo "2772"]
[TimeControl "180+1"]
[EndTime "9:45:00 PST"]
[Termination "GothamChess won by checkmate"]

1. d4 {[%clk 0:03:00.9]} 1... g6 {[%clk 0:02:57.1]} 2. c4 {[%clk 0:03:01.2]}
2... Bg7 {[%clk 0:02:57.6]} 3. e4 {[%clk 0:03:01.8]} 3... Nc6 {[%clk 0:02:57.6]}
4. Nf3 {[%clk 0:02:58.3]} 4... e5 {[%clk 0:02:57.2]} 5. Bg5 {[%clk 0:02:58.2]}
5... f6 {[%clk 0:02:56.3]} 6. Be3 {[%clk 0:02:58.6]} 6... Nh6 {[%clk 0:02:54.5]}
7. h3 {[%clk 0:02:56.5]} 7... d6 {[%clk 0:02:52]} 8. Nc3 {[%clk 0:02:54.7]} 8...
f5 {[%clk 0:02:46.2]} 9. Bg5 {[%clk 0:02:40]} 9... Qd7 {[%clk 0:02:37.3]} 10.
Nd5 {[%clk 0:02:36.5]} 10... O-O {[%clk 0:02:29.8]} 11. dxe5 {[%clk 0:02:20.4]}
11... fxe4 {[%clk 0:02:20.3]} 12. Nd2 {[%clk 0:01:39.5]} 12... Qf5 {[%clk
0:01:59]} 13. Be3 {[%clk 0:01:39.1]} 13... Qxe5 {[%clk 0:01:52.1]} 14. Be2
{[%clk 0:01:28.9]} 14... Nf5 {[%clk 0:01:41.9]} 15. Bf4 {[%clk 0:01:29.1]} 15...
Qxb2 {[%clk 0:01:32]} 16. Rb1 {[%clk 0:01:29.5]} 16... Qxa2 {[%clk 0:01:28]} 17.
O-O {[%clk 0:01:29.8]} 17... Nfd4 {[%clk 0:01:16.6]} 18. Nxc7 {[%clk 0:01:11.4]}
18... Rxf4 {[%clk 0:00:48.2]} 19. Nxa8 {[%clk 0:01:11.6]} 19... Qa5 {[%clk
0:00:32.7]} 20. Nb3 {[%clk 0:01:01.9]} 20... Qg5 {[%clk 0:00:22.3]} 21. Kh2
{[%clk 0:00:55.3]} 21... Be5 {[%clk 0:00:19.7]} 22. g3 {[%clk 0:00:52.6]} 22...
Rxf2+ {[%clk 0:00:17.5]} 23. Rxf2 {[%clk 0:00:53.5]} 23... Qxg3+ {[%clk
0:00:15.8]} 24. Kh1 {[%clk 0:00:54.4]} 24... Qxf2 {[%clk 0:00:15.4]} 25. Qg1
{[%clk 0:00:54.8]} 25... Qxe2 {[%clk 0:00:10.3]} 26. Qg2 {[%clk 0:00:53.3]}
26... Qd3 {[%clk 0:00:07.5]} 27. Nd2 {[%clk 0:00:44.9]} 27... e3 {[%clk
0:00:05.9]} 28. Qf1 {[%clk 0:00:45.1]} 28... e2 {[%clk 0:00:03.9]} 29. Qg2
{[%clk 0:00:42.4]} 29... Qxd2 {[%clk 0:00:03.5]} 30. Qf2 {[%clk 0:00:43]} 30...
Bf5 {[%clk 0:00:03.7]} 31. Re1 {[%clk 0:00:37.5]} 31... Be4+ {[%clk 0:00:04.2]}
32. Kg1 {[%clk 0:00:38.4]} 32... Nf3+ {[%clk 0:00:04.8]} 33. Qxf3 {[%clk
0:00:37.8]} 33... Bxf3 {[%clk 0:00:05.7]} 34. Kf2 {[%clk 0:00:38.7]} 34... Bd4+
{[%clk 0:00:05]} 35. Kxf3 {[%clk 0:00:39.6]} 35... Qxe1 {[%clk 0:00:05.5]} 36.
Nc7 {[%clk 0:00:40.5]} 36... Qf2+ {[%clk 0:00:06]} 37. Ke4 {[%clk 0:00:41.2]}
37... e1=Q+ {[%clk 0:00:06.9]} 38. Kd5 {[%clk 0:00:42.1]} 38... Qf3+ {[%clk
0:00:07.1]} 39. Kxd6 {[%clk 0:00:42.5]} 39... Qe5+ {[%clk 0:00:07.5]} 40. Kd7
{[%clk 0:00:43.4]} 40... Qf7+ {[%clk 0:00:07.4]} 41. Kc8 {[%clk 0:00:44.3]}
41... Qexc7# {[%clk 0:00:07.8]} 0-1

[Event "Early-Titled-Tuesday-Blitz-January-23-2024"]
[Site "Chess.com"]
[Date "2024.01.23"]
[Round "9"]
[White "alexrustemov"]
[Black "kingofthenil"]
[Result "0-1"]
[WhiteElo "2882"]
[BlackElo "2707"]
[TimeControl "180+1"]
[EndTime "9:45:01 PST"]
[Termination "kingofthenil won on time"]

1. d4 {[%clk 0:03:00.9]} 1... d6 {[%clk 0:02:59.7]} 2. e4 {[%clk 0:02:59.7]}
2... Nf6 {[%clk 0:02:54.8]} 3. f3 {[%clk 0:02:59.9]} 3... e5 {[%clk 0:02:51.5]}
4. Ne2 {[%clk 0:03:00.3]} 4... exd4 {[%clk 0:02:32.8]} 5. Nxd4 {[%clk
0:02:59.2]} 5... g6 {[%clk 0:02:08.3]} 6. c4 {[%clk 0:02:57.4]} 6... Bg7 {[%clk
0:02:06.3]} 7. Nc3 {[%clk 0:02:57.6]} 7... O-O {[%clk 0:02:06.8]} 8. Be3 {[%clk
0:02:50.3]} 8... Re8 {[%clk 0:02:01.4]} 9. Qd2 {[%clk 0:02:50.3]} 9... c6 {[%clk
0:02:01]} 10. O-O-O {[%clk 0:02:46.9]} 10... Na6 {[%clk 0:01:56]} 11. Nb3 {[%clk
0:02:41.1]} 11... Nd7 {[%clk 0:01:41]} 12. Qxd6 {[%clk 0:02:33.1]} 12... Be5
{[%clk 0:01:41.2]} 13. Qd2 {[%clk 0:02:31.5]} 13... Qf6 {[%clk 0:01:41.2]} 14.
Bd4 {[%clk 0:02:27.3]} 14... Bxd4 {[%clk 0:01:32.5]} 15. Qxd4 {[%clk 0:02:26.6]}
15... Ne5 {[%clk 0:01:32.7]} 16. Be2 {[%clk 0:02:20.8]} 16... Be6 {[%clk
0:01:31.9]} 17. Nd2 {[%clk 0:02:11.8]} 17... Red8 {[%clk 0:01:18]} 18. Qe3
{[%clk 0:02:10.8]} 18... Nb4 {[%clk 0:01:17.3]} 19. Kb1 {[%clk 0:02:06.5]} 19...
Ned3 {[%clk 0:01:08]} 20. Bxd3 {[%clk 0:01:50.7]} 20... Rxd3 {[%clk 0:01:08.9]}
21. Qc5 {[%clk 0:01:35.9]} 21... Na6 {[%clk 0:01:06.2]} 22. Qf2 {[%clk
0:01:23.4]} 22... Rad8 {[%clk 0:01:04.6]} 23. Nb3 {[%clk 0:01:18.5]} 23... Bxc4
{[%clk 0:01:01.8]} 24. Qxa7 {[%clk 0:01:13.6]} 24... Nb4 {[%clk 0:00:41.4]} 25.
Qf2 {[%clk 0:01:00.5]} 25... Bxb3 {[%clk 0:00:31.4]} 26. axb3 {[%clk 0:00:58.1]}
26... Qxc3 {[%clk 0:00:29.6]} 27. bxc3 {[%clk 0:00:15.5]} 27... Rxd1+ {[%clk
0:00:29.4]} 28. Kb2 {[%clk 0:00:15.6]} 28... Nd3+ {[%clk 0:00:29.6]} 0-1